Workbook

Sheet ETFs NAVs
B1: HBP ETFs Historical NAVs | G1: Beginning Row | H1: Tomorrow's Row | I1: Updated | Q1: =COUNT(A:A)+5 -> 4335
B2: HXU | F2: HXD | G2: 4334 | H2: =G2+1 -> 4335 | I2: 0 | J2: HFU | N2: HFD | R2: HEU | V2: HED | Z2: HGU | AD2: HGD | AH2: HBU | AL2: HBD | AP2: HOU | AT2: HOD | AX2: HNU | BB2: HND | BF2: HSU | BJ2: HSD | BN2: HQU | BR2: HQD | BV2: HIX | BZ2: HUG | CD2: HUZ | CH2: HUC | CL2: HUN | CP2: HZU | CT2: HZD | CX2: HIU | DB2: HXT | DF2: HXT/U | DJ2: HXS | DN2: HXS/U | DR2: HXE | DV2: HXF | DZ2: HUV | ED2: DLR | EH2: DLR/U | EL2: HOG | EP2: HII | ET2: HBB | EX2: HTB | FB2: HTB/U | FF2: HXH | FJ2: HXQ | FN2: HXQ/U | FR2: HEW | FU2: HHF | FX2: HCN | GA2: CAN | GD2: HSH | GG2: HTH | GJ2: HXX | GM2: HMMJ | GP2: HMMJ/U | GS2: HMJR | GV2: INOC | GY2: RBOT | HB2: RBOT/U | HE2: HXDM | HH2: HXDM/U | HK2: HBGD | HN2: HBGD/U | HQ2: ETHI | HT2: FOUR | HW2: HCRE | HZ2: HEWB | IC2: HLPR | IF2: HMUS | II2: HURA | IL2: HMJU | IO2: HMJI | IR2: HSAV | IU2: HULC | IX2: HULC/U | JA2: HXCN | JD2: HSUV/U | JG2: HXEM | JJ2: PSYK | JM2: HYDR | JP2: HLIT | JS2: CHPS | JV2: BBIG | JY2: HGGB | KB2: BITI | KE2: HBIT | KH2: BLDR | KK2: HVAX | KN2: CASH | KQ2: HRED | KT2: HREU | KW2: MTAV | KZ2: HBUG | LC2: HDOC | LF2: CARB | LI2: COPP | LL2: UTIL | LN2: CBIL | LQ2: UBIL.U
B3: BetaPro S&P/TSX 60™ 2x Daily Bull ETF - HXU | C3: % change | D3: Distribution | F3: BetaPro S&P/TSX 60™ -2x Daily Bear ETF - HXD | G3: % change | H3: Distribution | J3: BetaPro S&P/TSX Capped Financials™ 2x Daily Bull ETF - HFU | K3: % change | L3: Distribution | N3: BetaPro S&P/TSX Capped Financials™ -2x Daily Bear ETF - HFD | O3: % change | P3: Distribution | R3: BetaPro S&P/TSX Capped Energy™ 2x Daily Bull ETF - HEU | S3: % change | T3: Distribution | V3: BetaPro S&P/TSX Capped Energy™ -2x Daily Bear ETF - HED | W3: % change | X3: Distribution | Z3: BetaPro Canadian Gold Miners 2x Daily Bull ETF - HGU | AA3: % change | AB3: Distribution | AD3: BetaPro Canadian Gold Miners -2x Daily Bear ETF - HGD | AE3: % change | AF3: Distribution | AH3: BetaPro Gold Bullion 2x Daily Bull ETF - HBU | AI3: % change | AJ3: Distribution | AL3: BetaPro Gold Bullion -2x Daily Bear ETF - HBD | AM3: % change | AN3: Distribution | AP3: BetaPro Crude Oil Leveraged Daily Bull ETF - HOU | AQ3: % change | AR3: Distribution | AT3: BetaPro Crude Oil Inverse Leveraged Daily Bear ETF - HOD | AU3: % change | AV3: Distribution | AX3: BetaPro Natural Gas Leveraged Daily Bull ETF - HNU | AY3: % change | AZ3: Distribution | BB3: BetaPro Natural Gas Inverse Leveraged Daily Bear ETF - HND | BC3: % change | BD3: Distribution | BF3: BetaPro S&P 500® 2x Daily Bull ETF - HSU | BG3: % change | BH3: Distribution | BJ3: BetaPro S&P 500® -2x Daily Bear ETF - HSD | BK3: % change | BL3: Distribution | BN3: BetaPro NASDAQ-100® 2x Daily Bull ETF - HQU | BO3: % change | BP3: Distribution | BR3: BetaPro NASDAQ-100® -2x Daily Bear ETF - HQD | BS3: % change | BT3: Distribution | BV3: BetaPro S&P/TSX 60™ Daily Inverse ETF - HIX | BW3: % change | BX3: Distribution | BZ3: Horizons Gold ETF - HUG | CA3: % change | CB3: Distribution | CD3: Horizons Silver ETF - HUZ | CE3: % change | CF3: Distribution | CH3: Horizons Crude Oil ETF - HUC | CI3: % change | CJ3: Distribution | CL3: Horizons Natural Gas ETF - HUN | CM3: % change | CN3: Distribution | CP3: BetaPro Silver 2x Daily Bull ETF - HZU | CQ3: % change | CR3: Distribution | CT3: BetaPro Silver -2x Daily Bear ETF - HZD | CU3: % change | CV3: Distribution | CX3: BetaPro S&P 500® Daily Inverse ETF - HIU | CY3: % change | CZ3: Distribution | DB3: Horizons S&P/TSX 60® Index ETF - HXT | DC3: % change | DD3: Distribution | DF3: Horizons S&P/TSX 60® Index ETF | DG3: % change | DH3: Distribution | DJ3: Horizons S&P 500 Index ETF - HXS | DK3: % change | DL3: Distribution | DN3: Horizons S&P 500 Index ETF | DO3: % change | DP3: Distribution | DR3: Horizons S&P/TSX Capped Energy Index ETF - HXE | DS3: % change | DT3: Distribution | DV3: Horizons S&P/TSX Capped Financials Index ETF - HXF | DW3: % change | DX3: Distribution | DZ3: BetaPro S&P 500 VIX Short-Term Futures™ ETF - HUV | EA3: % change | EB3: Distribution | ED3: Horizons U.S. Dollar Currency - DLR | EE3: % change | EF3: Distribution | EH3: U.S Dollar Currency (USD) ETF DLR.U | EI3: % change | EJ3: Distribution | EL3: Horizons Pipelines & Energy Services Index ETF - HOG | EM3: % change | EN3: Distribution | EP3: Horizons Cdn Insider Index ETF - HII | EQ3: % change | ER3: Distribution | ET3: Horizons CDN Select Universe Bond ETF - HBB | EU3: % change | EV3: Distribution | EX3: HORIZONS US 7-10 YEAR TREASURY BOND ETF - HTB | EY3: % change | EZ3: Distribution | FB3: HORIZONS US 7-10 YEAR TREASURY BOND ETF - HTB.U | FC3: % change | FD3: Distribution | FF3: Horizons CDN High Dividend Index ETF - HXH | FG3: % change | FH3: Distribution | FJ3: Horizons NASDAQ 100 Index ETF - HXQ | FK3: % change | FL3: Distribution | FN3: Horizons NASDAQ 100 Index ETF - HXQ.U | FO3: % change | FP3: Distribution | FR3: Horizons S&P/TSX 60 Equal Weight Index ETF - HEW | FS3: % change | FU3: Horizons Morningstar Hedge Fund Index ETF - HHF | FV3: % change | FY3: % change | GB3: % change | GD3: Horizons S&P 500 CAD Hedged Index ETF - HSH | GE3: % change | GG3: Horizons US 7-10 YEAR Treasury Bond CAD Hedged ETF - HTH | GH3: % change | GJ3: Horizons Europe 50 Index ETF - HXX | GK3: % change | GM3: Horizons Marijuana Life Sciences Index ETF - HMMJ | GN3: % change | GP3: Horizons Medical MarijuanaLlife Sciences ETF HMMJ | GQ3: % change | GS3: Horizons Medical MarijuanaLlife Sciences ETF HMMJ.U | GT3: % change | GV3: Horizons Inovestor Canadian Equity Index ETF - INOC | GW3: % change | GY3: Horizons Robotics And Automation Index ETF - RBOT | GZ3: % change | HB3: Horizons Robotics And Automation Index ETF - RBOT.U | HC3: % change | HE3: Horizons Intl Developed Markets Equity Index ETF - HXDM | HF3: % change | HH3: Horizons Intl Developed Markets Equity Index ETF - HXDM.U | HI3: % change | HK3: Horizons Big Data & Hardware Index ETF - HBGD | HL3: % change | HN3: Horizons Big Data & Hardware Index ETF - HBGD.U | HO3: % change | HQ3: HORIZONS GLOBAL SUSTAINABILITY LEADERS INDEX ETF - ETHI | HR3: % change | HT3: HORIZONS INDUSTRY 4.0 INDEX ETF - FOUR | HU3: % change | HW3: Horizons Equal Weight Canada REIT Index ETF - HCRE | HX3: % change | HZ3: Horizons Equal Weight Canada Banks Index ETF - HEWB | IA3: % change | IC3: Horizons Laddered Canadian Preferred Share Index ETF - HLPR | ID3: % change | IF3: HORIZONS US MARIJUANA INDEX ETF - HMUS | IG3: % change | II3: HORIZONS GLOBAL URANIUM INDEX ETF - HURA | IJ3: % change | IL3: Betapro Marijuana Companies 2x Daily Bull ETF - HMJU | IM3: % change | IO3: Betapro Marijuana Companies Inverse ETF - HMJI | IP3: % change | IR3: HORIZONS CASH MAXIMIZER ETF - HSAV | IS3: % change | IU3: HORIZONS US LARGE CAP INDEX ETF - HULC | IV3: % change | IX3: HORIZONS US LARGE CAP INDEX ETF - HULC.U | IY3: % change | JA3: HORIZONS S&P/TSX CAPPED COMPOSITE INDEX ETF - HXCN | JB3: % change | JD3: Horizons USD Cash Maximizer ETF - HSUV.U | JE3: % change | JG3: Horizons Emerging Markets Equity Index ETF - HXEM | JH3: % change | JJ3: Horizons Psychedelic Stock Index ETF - PSYK | JK3: % change | JM3: Horizons Global Hydrogen Index ETF - HYDR | JN3: % change | JP3: Horizons Global Lithium Producers Index ETF - HLIT | JQ3: % change | JS3: Horizons Global Semiconductor Index ETF - CHPS | JT3: % change | JV3: Horizons Global BBIG Technology ETF - BBIG | JW3: % change | JY3: Horizons S&P Green Bond Index ETF - HGGB | JZ3: % change | KB3: BetaPro Inverse Bitcoin ETF - BITI.U | KC3: % change | KE3: Betapro Bitcoin ETF - HBIT.U | KF3: % change | KH3: Horizons North American Infrastructure Development Index ETF - BLDR | KI3: % change | KK3: Horizons Global Vaccines and Infectious Diseases Index ETF - HVAX | KL3: % change | KN3: Horizons High Interest Savings ETF - CASH | KO3: % change | KQ3: BetaPro Equal Weight Canadian REIT -2x Daily Bear ETF - HRED | KR3: % change | KT3: BetaPro Equal Weight Canadian REIT 2x Daily Bull ETF - HREU | KU3: % change | KW3: Horizons Global Metaverse Index ETF - MTAV | KX3: % change | KZ3: Horizons GX Cybersecurity Index ETF - HBUG | LA3: % change | LC3: Horizons GX Telemedicine and Digital Health Index ETF - HDOC | LD3: % change | LF3: Horizons Carbon Credits ETF - CARB | LG3: % change | LI3: Horizons Copper Producers Index ETF - COPP | LJ3: % change | LL3: Horizons Canadian Utility Services High Dividend Index ETF | LM3: %Change | LN3: Horizons 0-3 Month T-Bill ETF | LO3: %Change | LQ3: Horizons 0-3 Month US T-Bill ETF | LR3: %Change
A5: 2007-01-08 | B5: 25 | F5: 25
A6: 2007-01-09 | B6: 24.5631 | C6: =B6/B5-1 -> -0.017476 | F6: 25.445 | G6: =F6/F5-1 -> 0.0178
A7: 2007-01-10 | B7: 24.3902 | C7: =B7/B6-1 -> -0.007039013805 | F7: 25.6422 | G7: =F7/F6-1 -> 0.007750049126
A8: 2007-01-11 | B8: 24.6228 | C8: 0.009536617166 | F8: 25.4012 | G8: -0.009398569546
A9: 2007-01-12 | B9: 25.2647 | C9: 0.02606933411 | F9: 24.7424 | G9: -0.02593578256
A10: 2007-01-15 | B10: 25.5239 | C10: 0.01025937375 | F10: 24.489 | G10: -0.01024152871
A11: 2007-01-16 | B11: 25.3784 | C11: -0.005700539494 | F11: 24.632 | G11: 0.005839356446
A12: 2007-01-17 | B12: 25.3855 | C12: 0.0002797654698 | F12: 24.638 | G12: 0.0002435855797
A13: 2007-01-18 | B13: 24.9136 | C13: -0.01858935219 | F13: 25.0993 | G13: 0.01872311064
A14: 2007-01-19 | B14: 25.3525 | C14: 0.01761688395 | F14: 24.6606 | G14: -0.0174785751
A15: 2007-01-22 | B15: 25.2137 | C15: -0.005474805246 | F15: 24.796 | G15: 0.005490539565
A16: 2007-01-23 | B16: 26.0638 | C16: 0.03371579736 | F16: 23.9634 | G16: -0.03357799645
A17: 2007-01-24 | B17: 26.4544 | C17: 0.01498630284 | F17: 23.6169 | G17: -0.01445955081
A18: 2007-01-25 | B18: 26.0837 | C18: -0.01401279182 | F18: 23.951 | G18: 0.01414664922
A19: 2007-01-26 | B19: 26.3279 | C19: 0.009362168711 | F19: 23.7301 | G19: -0.009222996952
A20: 2007-01-29 | B20: 26.211 | C20: -0.00444015664 | F20: 23.8358 | G20: 0.004454258516
A21: 2007-01-30 | B21: 26.5064 | C21: 0.01127007745 | F21: 23.5708 | G21: -0.01111773047
A22: 2007-01-31 | B22: 26.5079 | C22: 5.659010654e-05 | F22: 23.582 | G22: 0.0004751641862
A23: 2007-02-01 | B23: 27.0079 | C23: 0.01886230143 | F23: 23.1404 | G23: -0.01872614706
A24: 2007-02-02 | B24: 26.8095 | C24: -0.007345998763 | F24: 23.3135 | G24: 0.007480423847
A25: 2007-02-05 | B25: 27.0239 | C25: 0.007997165184 | F25: 23.1275 | G25: -0.00797821005
A26: 2007-02-06 | B26: 27.0663 | C26: 0.001568981531 | F26: 23.0944 | G26: -0.001431196627
A27: 2007-02-07 | B27: 26.8398 | C27: -0.008368339965 | F27: 23.2998 | G27: 0.008893930996
A28: 2007-02-08 | B28: 27.0338 | C28: 0.007228071744 | F28: 23.1345 | G28: -0.007094481498
A29: 2007-02-09 | B29: 26.5497 | C29: -0.01790721245 | F29: 23.5518 | G29: 0.0180379952
A30: 2007-02-12 | B30: 26.4041 | C30: -0.005484054434 | F30: 23.6814 | G30: 0.00550276412
A31: 2007-02-13 | B31: 27.0016 | C31: 0.0226290614 | F31: 23.1485 | G31: -0.02250289257
A32: 2007-02-14 | B32: 27.0816 | C32: 0.00296278739 | F32: 23.0923 | G32: -0.002427803097
A33: 2007-02-15 | B33: 27.3744 | C33: 0.01081176888 | F33: 22.8459 | G33: -0.01067022341
A34: 2007-02-16 | B34: 27.4815 | C34: 0.003912414519 | F34: 22.7595 | G34: -0.003781860202
A35: 2007-02-19 | B35: 27.34 | C35: -0.005148918363 | F35: 22.8769 | G35: 0.005158285551
A36: 2007-02-20 | B36: 27.5096 | C36: 0.006203365033 | F36: 22.7379 | G36: -0.006075998059
A37: 2007-02-21 | B37: 27.508 | C37: -5.816151453e-05 | F37: 22.7512 | G37: 0.0005849264884
A38: 2007-02-22 | B38: 27.3716 | C38: -0.004958557511 | F38: 22.867 | G38: 0.005089841415
A39: 2007-02-23 | B39: 27.4297 | C39: 0.002122638063 | F39: 22.8214 | G39: -0.001994140027
A40: 2007-02-26 | B40: 27.7358 | C40: 0.01115943667 | F40: 22.5669 | G40: -0.01115181365
A41: 2007-02-27 | B41: 26.2187 | C41: -0.05469826001 | F41: 23.8043 | G41: 0.0548325202
A42: 2007-02-28 | B42: 26.1606 | C42: -0.00221597562 | F42: 23.8694 | G42: 0.002734800015
A43: 2007-03-01 | B43: 25.9001 | C43: -0.009957722682 | F43: 24.1103 | G43: 0.01009241958
A44: 2007-03-02 | B44: 25.4409 | C44: -0.01772966128 | F44: 24.5412 | G44: 0.0178720298
A45: 2007-03-05 | B45: 24.9538 | C45: -0.01914633523 | F45: 25.0117 | G45: 0.01917184164
A46: 2007-03-06 | B46: 25.5163 | C46: 0.02254165698 | F46: 24.4516 | G46: -0.02239351983
A47: 2007-03-07 | B47: 25.9416 | C47: 0.01666777707 | F47: 24.0572 | G47: -0.01612982382
A48: 2007-03-08 | B48: 26.2441 | C48: 0.01166080735 | F48: 23.7802 | G48: -0.01151422443
A49: 2007-03-09 | B49: 26.3298 | C49: 0.003265495864 | F49: 23.7059 | G49: -0.00312444807
A50: 2007-03-12 | B50: 26.3901 | C50: 0.002290180708 | F50: 23.6521 | G50: -0.002269477219
A51: 2007-03-13 | B51: 25.3201 | C51: -0.0405455076 | F51: 24.6143 | G51: 0.04068137713
A52: 2007-03-14 | B52: 25.3856 | C52: 0.002586877619 | F52: 24.5638 | G52: -0.002051652901
A53: 2007-03-15 | B53: 25.5767 | C53: 0.007527889827 | F53: 24.3824 | G53: -0.007384850878
A54: 2007-03-16 | B54: 25.3897 | C54: -0.007311341964 | F54: 24.5638 | G54: 0.007439792637
A55: 2007-03-19 | B55: 26.1712 | C55: 0.03078019827 | F55: 23.8084 | G55: -0.03075257086
A56: 2007-03-20 | B56: 25.9912 | C56: -0.006877789326 | F56: 23.9756 | G56: 0.007022731473
A57: 2007-03-21 | B57: 26.7589 | C57: 0.02953692019 | F57: 23.2803 | G57: -0.02900031699
A58: 2007-03-22 | B58: 26.5204 | C58: -0.00891292243 | F58: 23.491 | G58: 0.009050570654
A59: 2007-03-23 | B59: 26.9892 | C59: 0.01767695812 | F59: 23.0789 | G59: -0.01754288877
A60: 2007-03-26 | B60: 27.2508 | C60: 0.009692765995 | F60: 22.8553 | G60: -0.009688503352
A61: 2007-03-27 | B61: 26.9137 | C61: -0.01237027904 | F61: 23.141 | G61: 0.01250038284
A62: 2007-03-28 | B62: 26.8441 | C62: -0.002586043539 | F62: 23.2129 | G62: 0.003107039454
A63: 2007-03-29 | B63: 27.1116 | C63: 0.009964945742 | F63: 22.9847 | G63: -0.009830740666
A64: 2007-03-30 | B64: 26.7199 | C64: -0.01444769029 | F64: 23.3198 | G64: 0.0145792636
A65: 2007-04-02 | B65: 27.1562 | C65: 0.01632865392 | F65: 22.9392 | G65: -0.01632089469
A66: 2007-04-03 | B66: 27.5807 | C66: 0.01563178943 | F66: 22.597 | G66: -0.01491769547
A67: 2007-04-04 | B67: 27.9139 | C67: 0.01208091165 | F67: 22.3271 | G67: -0.01194406337
A68: 2007-04-05 | B68: 27.7976 | C68: -0.004166383056 | F68: 22.4231 | G68: 0.00429970753
A69: 2007-04-09 | B69: 28.0525 | C69: 0.00916985639 | F69: 22.2161 | G69: -0.009231551391
A70: 2007-04-10 | B70: 27.8044 | C70: -0.008844131539 | F70: 22.4155 | G70: 0.008975472743
A71: 2007-04-11 | B71: 27.6818 | C71: =B71/B70-1 -> -0.004409374056 | F71: 22.5261 | G71: =F71/F70-1 -> 0.004934085789
A72: 2007-04-12 | B72: 28.1107 | C72: 0.01549393464 | F72: 22.1801 | G72: -0.01535996022
A73: 2007-04-13 | B73: 28.4264 | C73: 0.01123059902 | F73: 21.934 | G73: -0.01109553158
A74: 2007-04-16 | B74: 28.7434 | C74: 0.01115160555 | F74: 21.6895 | G74: -0.0111470776
A75: 2007-04-17 | B75: 28.6982 | C75: -0.001572534912 | F75: 21.7265 | G75: 0.001705894557
A76: 2007-04-18 | B76: 28.9896 | C76: 0.01015394694 | F76: 21.5173 | G76: -0.00962879433
A77: 2007-04-19 | B77: 28.3568 | C77: -0.02182851781 | F77: 21.9898 | G77: 0.02195907479
A78: 2007-04-20 | B78: 28.7116 | C78: 0.01251199007 | F78: 21.7176 | G78: -0.01237846638
A79: 2007-04-23 | B79: 28.4912 | C79: -0.007676339877 | F79: 21.8851 | G79: 0.007712638597
A80: 2007-04-24 | B80: 28.4301 | C80: -0.002144521817 | F80: 21.9351 | G80: 0.002284659426
A81: 2007-04-25 | B81: 28.7948 | C81: 0.01282795347 | F81: 21.6652 | G81: -0.01230448003
A82: 2007-04-26 | B82: 28.4544 | C82: -0.0118215789 | F82: 21.9243 | G82: 0.01195927109
A83: 2007-04-27 | B83: 28.5601 | C83: 0.003714715475 | F83: 21.8457 | G83: -0.003585063149
A84: 2007-04-30 | B84: 27.5499 | C84: -0.03537102461 | F84: 22.6186 | G84: 0.03537996036
A85: 2007-05-01 | B85: 27.4589 | C85: -0.003303097289 | F85: 22.6962 | G85: 0.003430804736
A86: 2007-05-02 | B86: 28.2017 | C86: 0.02705133855 | F86: 22.0939 | G86: -0.02653748205
A87: 2007-05-03 | B87: 28.6071 | C87: 0.01437501995 | F87: 21.7794 | G87: -0.01423469827
A88: 2007-05-04 | B88: 29.0029 | C88: 0.0138357261 | F88: 21.4812 | G88: -0.01369183724
A89: 2007-05-07 | B89: 29.4166 | C89: 0.01426409083 | F89: 21.1754 | G89: -0.01423570378
A90: 2007-05-08 | B90: 29.6654 | C90: 0.008457809536 | F90: 20.9991 | G90: -0.008325698688
A91: 2007-05-09 | B91: 29.4301 | C91: -0.007931799335 | F91: 21.177 | G91: 0.008471791648
A92: 2007-05-10 | B92: 29.2758 | C92: -0.005242931556 | F92: 21.2911 | G92: 0.005387920858
A93: 2007-05-11 | B93: 30.0225 | C93: 0.02550570779 | F93: 20.7508 | G93: -0.02537680064
A94: 2007-05-14 | B94: 29.5792 | C94: -0.01476559247 | F94: 21.0578 | G94: 0.01479461033
A95: 2007-05-15 | B95: 29.7496 | C95: 0.00576080489 | F95: 20.9395 | G95: -0.005617870813
A96: 2007-05-16 | B96: 30.2232 | C96: 0.01591954178 | F96: 20.6215 | G96: -0.01518660904
A97: 2007-05-17 | B97: 30.5575 | C97: 0.0110610392 | F97: 20.3963 | G97: -0.01092064108
A98: 2007-05-18 | B98: 30.5081 | C98: -0.001616624397 | F98: 20.432 | G98: 0.00175031746
A99: 2007-05-22 | B99: 30.4545 | C99: -0.00175691046 | F99: 20.4667 | G99: 0.001698316366
A100: 2007-05-23 | B100: 30.6521 | C100: 0.006488367893 | F100: 20.3447 | G100: -0.005960902344
A101: 2007-05-24 | B101: 29.8976 | C101: -0.02461495297 | F101: 20.8484 | G101: 0.02475829086
A102: 2007-05-25 | B102: 30.2934 | C102: 0.01323852082 | F102: 20.5752 | G102: -0.0131041231
A103: 2007-05-28 | B103: 30.4215 | C103: 0.004228643863 | F103: 20.4889 | G103: -0.004194369921
A104: 2007-05-29 | B104: 30.0235 | C104: -0.01308285259 | F104: 20.7599 | G104: 0.01322667396
A105: 2007-05-30 | B105: 30.6685 | C105: 0.02148317152 | F105: 20.3249 | G105: -0.02095385816
A106: 2007-05-31 | B106: 30.3555 | C106: -0.0102059116 | F106: 20.5352 | G106: 0.01034691438
A107: 2007-06-01 | B107: 30.6547 | C107: 0.009856533412 | F107: 20.3357 | G107: -0.009715025907
A108: 2007-06-04 | B108: 30.6255 | C108: -0.0009525456129 | F108: 20.3553 | G108: 0.0009638222436
A109: 2007-06-05 | B109: 30.628536 | C109: 9.913307538e-05 | F109: 20.356416 | G109: 5.482601583e-05
A110: 2007-06-06 | B110: 29.660915 | C110: -0.03159214009 | F110: 21.010568 | G110: 0.03213492984
A111: 2007-06-07 | B111: 28.7157 | C111: -0.0318673581 | F111: 21.682929 | G111: 0.03200108631
A112: 2007-06-08 | B112: 29.253823 | C112: 0.01873967899 | F112: 21.279495 | G112: -0.01860606563
A113: 2007-06-11 | B113: 29.390015 | C113: 0.004655528271 | F113: 21.180552 | G113: -0.00464968741 | J113: 20 | N113: 20
A114: 2007-06-12 | B114: 28.917078 | C114: -0.01609175769 | F114: 21.524201 | G114: 0.0162247424 | J114: 19.8036 | K114: =J114/J113-1 -> -0.00982 | N114: 20.2027 | O114: =N114/N113-1 -> 0.010135
A115: 2007-06-13 | B115: 29.612468 | C115: 0.02404772709 | F115: 21.017996 | G115: -0.02351794615 | J115: 20.2279 | K115: 0.0214253974 | N115: 19.7839 | O115: -0.02072990244
A116: 2007-06-14 | B116: 30.199783 | C116: 0.01983336884 | F116: 20.60397 | G116: -0.01969864301 | J116: 20.1524 | K116: -0.003732468521 | N116: 19.8606 | O116: 0.003876889794
A117: 2007-06-15 | B117: 30.818339 | C117: 0.02048213393 | F117: 20.184733 | G117: -0.02034738936 | J117: 20.3078 | K117: 0.007711240349 | N117: 19.71 | O117: -0.007582852482
A118: 2007-06-18 | B118: 30.975375 | C118: 0.005095537433 | F118: 20.082019 | G118: -0.005088697482 | J118: 20.2919 | K118: -0.0007829503934 | N118: 19.7254 | O118: 0.0007813292745 | R118: 20 | V118: 20
A119: 2007-06-19 | B119: 30.686201 | C119: -0.009335609335 | F119: 20.272209 | G119: 0.009470661292 | J119: 20.0503 | K119: -0.01190622859 | N119: 19.9628 | O119: 0.0120352439 | R119: 19.8883 | S119: =R119/R118-1 -> -0.005585 | V119: 20.1181 | W119: =V119/V118-1 -> 0.005905
A120: 2007-06-20 | B120: 29.9729 | C120: -0.0232450084 | F120: 20.7543 | G120: 0.0237808815 | J120: 19.9493 | K120: -0.005037331112 | N120: 20.0735 | O120: 0.005545314285 | R120: 19.1115 | S120: -0.03905813971 | V120: 20.9178 | W120: 0.03975027463
A121: 2007-06-21 | B121: 30.666 | C121: 0.02312422221 | F121: 20.2772 | G121: -0.0229880073 | J121: 19.9085 | K121: -0.002045184543 | N121: 20.1172 | O121: 0.002176999527 | R121: 19.6679 | S121: 0.02911336107 | V121: 20.3116 | W121: -0.02898010307
A122: 2007-06-22 | B122: 30.114 | C122: -0.01800039131 | F122: 20.6451 | G122: 0.01814353066 | J122: 19.8318 | K122: -0.003852625763 | N122: 20.1972 | O122: 0.003976696558 | R122: 19.2736 | S122: -0.0200478953 | V122: 20.7214 | W122: 0.02017566317
A123: 2007-06-25 | B123: 29.4593 | C123: -0.0217407186 | F123: 21.0944 | G123: 0.02176303336 | J123: 19.8218 | K123: -0.000504240664 | N123: 20.2074 | O123: 0.0005050204979 | R123: 18.5472 | S123: -0.03768885937 | V123: 21.5023 | W123: 0.03768567761 | Z123: 20 | AD123: 20
A124: 2007-06-26 | B124: 28.6988 | C124: -0.02581527735 | F124: 21.6419 | G124: 0.02595475576 | J124: 19.7451 | K124: -0.00386947704 | N124: 20.2882 | O124: 0.00399853519 | R124: 17.8299 | S124: -0.03867430124 | V124: 22.3367 | W124: 0.03880515108 | Z124: 19.0793 | AA124: =Z124/Z123-1 -> -0.046035 | AD124: 20.9271 | AE124: =AD124/AD123-1 -> 0.046355
A125: 2007-06-27 | B125: 29.0953 | C125: 0.01381590868 | F125: 21.359 | G125: -0.01307186522 | J125: 19.7597 | K125: 0.0007394239583 | N125: 20.2876 | O125: -2.957384095e-05 | R125: 18.1073 | S125: 0.01555813549 | V125: 22.0043 | W125: -0.01488133878 | Z125: 19.4977 | AA125: 0.02192952572 | AD125: 20.4868 | AE125: -0.0210397045
A126: 2007-06-28 | B126: 28.9035 | C126: -0.00659213 | F126: 21.5027 | G126: 0.006727843064 | J126: 19.7637 | K126: 0.0002024322232 | N126: 20.286 | O126: -7.886590824e-05 | R126: 18.078 | S126: -0.001618131914 | V126: 22.0427 | W126: 0.001745113455 | Z126: 19.2135 | AA126: -0.0145760782 | AD126: 20.7883 | AE126: 0.01471679325
A127: 2007-06-29 | B127: 29.9227 | C127: 0.03526216548 | F127: 20.7475 | G127: -0.03512117083 | J127: 20.0548 | K127: 0.01472902341 | N127: 19.9899 | O127: -0.01459627329 | R127: 18.5493 | S127: 0.02607036177 | V127: 21.4707 | W127: -0.02594963412 | Z127: 19.6937 | AA127: 0.02499284357 | AD127: 20.2714 | AE127: -0.02486494807
A128: 2007-07-03 | B128: 30.4888 | C128: 0.01891874731 | F128: 20.3538 | G128: -0.01897578021 | J128: 20.448 | K128: 0.0196062788 | N128: 19.5968 | O128: -0.01966493079 | R128: 18.872 | S128: 0.0173968829 | V128: 21.0958 | W128: -0.017461005 | Z128: 20.4179 | AA128: 0.03677318127 | AD128: 19.5248 | AE128: -0.036830214
A129: 2007-07-04 | B129: 30.3749 | C129: -0.003735798064 | F129: 20.4411 | G129: 0.004289125372 | J129: 20.2823 | K129: -0.008103482003 | N129: 19.766 | O129: 0.008634062704 | R129: 18.6746 | S129: -0.01045994065 | V129: 21.3275 | W129: 0.01098322889 | Z129: 20.5522 | AA129: 0.006577561845 | AD129: 19.4068 | AE129: -0.006043595837
A130: 2007-07-05 | B130: 30.458 | C130: 0.002735811476 | F130: 20.3881 | G130: -0.002592815455 | J130: 20.1064 | K130: -0.008672586442 | N130: 19.94 | O130: 0.008802995042 | R130: 18.7172 | S130: 0.002281173358 | V130: 21.2815 | W130: -0.002156839761 | Z130: 20.6401 | AA130: 0.004276914394 | AD130: 19.3264 | AE130: -0.004142877754
A131: 2007-07-06 | B131: 30.4891 | C131: 0.001021078206 | F131: 20.3702 | G131: -0.0008779631255 | J131: 20.0676 | K131: -0.001929733816 | N131: 19.9811 | O131: 0.002061183551 | R131: 18.7468 | S131: 0.00158143312 | V131: 21.2506 | W131: -0.001451965322 | Z131: 21.617 | AA131: 0.04733019704 | AD131: 18.4143 | AE131: -0.04719451114
A132: 2007-07-09 | B132: 30.7916 | C132: =B132/B131-1 -> 0.009921578531 | F132: 20.1684 | G132: -0.00990662831 | J132: 20.0352 | K132: -0.001614542845 | N132: 20.0136 | O132: 0.001626537078 | R132: 18.9284 | S132: 0.009686986579 | V132: 21.0449 | W132: -0.00967972669 | Z132: 22.158 | AA132: 0.02502659944 | AD132: 17.9537 | AE132: -0.02501316911
A133: 2007-07-10 | B133: 30.5853 | C133: =B133/B132-1 -> -0.006699879188 | F133: 20.3064 | G133: 0.006842387101 | J133: 19.9654 | K133: -0.003483868392 | N133: 20.086 | O133: 0.003617540073 | R133: 18.9461 | S133: 0.0009351028085 | V133: 21.028 | W133: -0.0008030449182 | Z133: 22.0731 | AA133: -0.003831573247 | AD133: 18.0249 | AE133: 0.003965756362
A134: 2007-07-11 | B134: 30.7586 | C134: =B134/B133-1 -> 0.005666120653 | F134: 20.2027 | G134: -0.00510676437 | J134: 19.8753 | K134: -0.004512807156 | N134: 20.1874 | O134: 0.005048292343 | R134: 19.0109 | S134: 0.003420228965 | V134: 20.9671 | W134: -0.002896138482 | Z134: 21.8593 | AA134: -0.009685997889 | AD134: 18.2092 | AE134: 0.01022474466
A135: 2007-07-12 | B135: 31.6906 | C135: =B135/B134-1 -> 0.03030046881 | F135: 19.5935 | G135: =F135/F134-1 -> -0.0301543853 | J135: 20.4054 | K135: 0.02667129553 | N135: 19.6517 | O135: -0.02653635436 | R135: 19.2642 | S135: 0.01332393522 | V135: 20.6905 | W135: -0.01319209619 | Z135: 22.6364 | AA135: 0.03555008623 | AD135: 17.5645 | AE135: -0.0354051798
A136: 2007-07-13 | B136: 32.3747 | C136: =B136/B135-1 -> 0.02158684279 | F136: 19.1734 | G136: =F136/F135-1 -> -0.02144078393 | J136: 20.7213 | K136: 0.01548119615 | N136: 19.3502 | O136: -0.01534218414 | R136: 19.839 | S136: 0.02983773009 | V136: 20.0759 | W136: -0.02970445373 | Z136: 22.8259 | AA136: 0.008371472496 | AD136: 17.4199 | AE136: -0.008232514447
A137: 2007-07-16 | B137: 31.6408 | C137: -0.02266893593 | F137: 19.6087 | G137: 0.02270332857 | J137: 20.5235 | K137: -0.009545733135 | N137: 19.5351 | O137: 0.009555456791 | R137: 19.1101 | S137: -0.03674076314 | V137: 20.8137 | W137: 0.03675053173 | Z137: 22.1491 | AA137: -0.02965052857 | AD137: 17.9366 | AE137: 0.02966147911
A138: 2007-07-17 | B138: 31.9221 | C138: 0.008890419964 | F138: 19.4374 | G138: -0.00873591824 | J138: 20.6689 | K138: 0.0070845616 | N138: 19.3994 | O138: -0.006946470712 | R138: 19.1278 | S138: 0.0009262117938 | V138: 20.7972 | W138: -0.0007927470849 | Z138: 22.0379 | AA138: -0.005020520021 | AD138: 18.0292 | AE138: 0.005162628369
A139: 2007-07-18 | B139: 32.8467 | C139: 0.02896425987 | F139: 18.8854 | G139: -0.02839885993 | J139: 20.8668 | K139: 0.009574771759 | N139: 19.2242 | O139: -0.009031207151 | R139: 19.7935 | S139: 0.03480274783 | V139: 20.0844 | W139: -0.03427384456 | Z139: 23.8539 | AA139: 0.0824034958 | AD139: 16.5533 | AE139: -0.08186164666
A140: 2007-07-19 | B140: 33.0439 | C140: 0.006003647246 | F140: 18.7748 | G140: -0.005856375825 | J140: 20.8086 | K140: -0.002789119558 | N140: 19.2804 | O140: 0.002923398633 | R140: 20.195 | S140: 0.02028443681 | V140: 19.6798 | W140: -0.02014498815 | Z140: 24.656 | AA140: 0.03362552874 | AD140: 15.99 | AE140: -0.03402946844
A141: 2007-07-20 | B141: 32.922 | C141: -0.003689031864 | F141: 18.8468 | G141: 0.003834927669 | J141: 20.8087 | K141: 4.805705333e-06 | N141: 19.283 | O141: 0.000134851974 | R141: 20.0214 | S141: -0.008596187175 | V141: 19.8517 | W141: 0.008734844866 | Z141: 24.6631 | AA141: 0.0002879623621 | AD141: 15.9966 | AE141: 0.0004127579737
A142: 2007-07-23 | B142: 32.4567 | C142: -0.01413340623 | F142: 19.1136 | G142: 0.01415624934 | J142: 20.5788 | K142: -0.01104826347 | N142: 19.4963 | O142: 0.01106155681 | R142: 19.3467 | S142: -0.03369894213 | V142: 20.5208 | W142: 0.033704922 | Z142: 24.5408 | AA142: -0.004958825127 | AD142: 16.0762 | AE142: 0.004976057412
A143: 2007-07-24 | B143: 30.5654 | C143: -0.0582714817 | F143: 20.2301 | G143: 0.05841390424 | J143: 19.8843 | K143: -0.03374832352 | N143: 20.1569 | O143: 0.03388335223 | R143: 17.8402 | S143: -0.07786857707 | V143: 22.1216 | W143: 0.07800865463 | Z143: 23.5931 | AA143: -0.03861732299 | AD143: 16.6992 | AE143: 0.03875293913
A144: 2007-07-25 | B144: 30.9315 | C144: 0.01197759558 | F144: 19.9993 | G144: -0.01140874242 | J144: 19.9117 | K144: 0.001377971566 | N144: 20.14 | O144: -0.0008384225749 | R144: 18.5143 | S144: 0.03778545084 | V144: 21.2973 | W144: -0.03726222335 | Z144: 23.0693 | AA144: -0.02220140634 | AD144: 17.0791 | AE144: 0.02274959279
A145: 2007-07-26 | B145: 29.7706 | C145: -0.03753131921 | F145: 20.7528 | G145: 0.03767631867 | J145: 19.1888 | K145: -0.03630528785 | N145: 20.874 | O145: 0.0364448858 | R145: 17.6774 | S145: -0.04520289722 | V145: 22.2629 | W145: 0.04533908054 | Z145: 21.7757 | AA145: -0.05607452328 | AD145: 18.0393 | AE145: 0.05622076105
A146: 2007-07-27 | B146: 29.3091 | C146: -0.01550187097 | F146: 21.0776 | G146: 0.01565090012 | J146: 18.7891 | K146: -0.02082985908 | N146: 21.3117 | O146: 0.02096866916 | R146: 17.5629 | S146: -0.006477196873 | V146: 22.41 | W146: 0.006607405145 | Z146: 21.198 | AA146: -0.02652957195 | AD146: 18.5203 | AE146: 0.02666400581
A147: 2007-07-30 | B147: 29.8266 | C147: 0.01765663224 | F147: 20.7058 | G147: -0.01763957946 | J147: 18.699 | K147: -0.004795333465 | N147: 21.4141 | O147: 0.004804872441 | R147: 17.6051 | S147: 0.00240279225 | V147: 22.3562 | W147: -0.002400713967 | Z147: 22.811 | AA147: 0.07609208416 | AD147: 17.1116 | AE147: -0.07606248279
A148: 2007-07-31 | B148: 29.75 | C148: -0.002568177399 | F148: 20.762 | G148: 0.002714215341 | J148: 18.78 | K148: 0.004331782448 | N148: 21.321 | O148: -0.004347602748 | R148: 18.1427 | S148: 0.03053660587 | V148: 21.6766 | W148: -0.03039872608 | Z148: 22.3557 | AA148: -0.01995966858 | AD148: 17.4557 | AE148: 0.02010916571
A149: 2007-08-01 | B149: 28.8371 | C149: -0.03068571429 | F149: 21.4153 | G149: 0.03146614006 | J149: 18.3885 | K149: -0.02084664537 | N149: 21.7844 | O149: 0.02173444022 | R149: 17.4813 | S149: -0.03645543387 | V149: 22.4824 | W149: 0.03717372651 | Z149: 21.2506 | AA149: -0.04943258319 | AD149: 18.3318 | AE149: 0.05018990931
A150: 2007-08-02 | B150: 29.6191 | C150: 0.02711784472 | F150: 20.8377 | G150: -0.02697137094 | J150: 18.9425 | K150: 0.03012752536 | N150: 21.1311 | O150: -0.02998935018 | R150: 17.9174 | S150: 0.02494665729 | V150: 21.9245 | W150: -0.02481496637 | Z150: 21.4137 | AA150: 0.00767507741 | AD150: 18.1936 | AE150: -0.007538812337
A151: 2007-08-03 | B151: 28.2982 | C151: -0.04459622338 | F151: 21.7701 | G151: 0.04474582128 | J151: 18.2627 | K151: -0.03588755444 | N151: 21.8923 | O151: 0.03602273426 | R151: 17.1835 | S151: -0.04096018396 | V151: 22.8254 | W151: 0.0410910169 | Z151: 21.011 | AA151: -0.01880571783 | AD151: 18.5384 | AE151: 0.01895171929
A152: 2007-08-07 | B152: 28.398 | C152: 0.003526726082 | F152: 21.6923 | G152: -0.003573708894 | J152: 18.7584 | K152: 0.02714275545 | N152: 21.2969 | O152: -0.02719677695 | R152: 16.6112 | S152: -0.03330520558 | V152: 23.5844 | W152: 0.03325242931 | Z152: 20.4879 | AA152: -0.02489648279 | AD152: 18.999 | AE152: 0.02484572563
A153: 2007-08-08 | B153: 29.2551 | C153: 0.03018170294 | F153: 21.05 | G153: -0.02960958497 | J153: 19.5542 | K153: 0.04242366087 | N153: 20.4051 | O153: -0.04187463903 | R153: 17.054 | S153: 0.02665671354 | V153: 22.9679 | W153: -0.02614016045 | Z153: 21.4551 | AA153: 0.04720835225 | AD153: 18.1126 | AE153: -0.04665508711
A154: 2007-08-09 | B154: 27.9338 | C154: -0.04516477469 | F154: 22.0039 | G154: 0.04531591449 | J154: 18.5099 | K154: -0.05340540651 | N154: 21.4977 | O154: 0.05354543717 | R154: 16.4509 | S154: -0.03536413745 | V154: 23.7833 | W154: 0.03550172197 | Z154: 20.769 | AA154: -0.03197841073 | AD154: 18.6944 | AE154: 0.03212128573
A155: 2007-08-10 | B155: 27.993 | C155: =B155/B154-1 -> 0.002119296336 | F155: 21.9605 | G155: -0.001972377624 | J155: 18.3847 | K155: -0.006763947941 | N155: 21.6461 | O155: 0.006903064049 | R155: 16.6089 | S155: 0.009604337757 | V155: 23.558 | W155: -0.009473033599 | Z155: 21.2612 | AA155: 0.02369878184 | AD155: 18.2541 | AE155: -0.0235525077
A156: 2007-08-13 | B156: 27.7293 | C156: =B156/B155-1 -> -0.009420212196 | F156: 22.168 | G156: 0.009448783042 | J156: 17.8947 | K156: -0.026652597 | N156: 22.2234 | O156: 0.0266699313 | R156: 16.5473 | S156: -0.003708854891 | V156: 23.6461 | W156: 0.003739706257 | Z156: 20.4637 | AA156: -0.03750964198 | AD156: 18.9395 | AE156: 0.037547729
A157: 2007-08-14 | B157: 26.9774 | C157: -0.02711572236 | F157: 22.7725 | G157: 0.02726903645 | J157: 17.3515 | K157: -0.03035535661 | N157: 22.9012 | O157: 0.03049938353 | R157: 16.206 | S157: -0.02062572142 | V157: 24.1373 | W157: 0.02077298159 | Z157: 19.7438 | AA157: -0.03517936639 | AD157: 19.6088 | AE157: 0.0353388421
A158: 2007-08-15 | B158: 26.3236 | C158: -0.02423510049 | F158: 23.3379 | G158: 0.0248281919 | J158: 17.2207 | K158: -0.007538253177 | N158: 23.0866 | O158: 0.008095645643 | R158: 15.794 | S158: -0.02542268296 | V158: 24.7641 | W158: 0.02596810745 | Z158: 18.618 | AA158: -0.05702043173 | AD158: 20.7382 | AE158: 0.05759658929
A159: 2007-08-16 | B159: 25.7044 | C159: -0.02352261849 | F159: 23.8908 | G159: 0.0236910776 | J159: 17.57 | K159: 0.0202837283 | N159: 22.6219 | O159: -0.02012855942 | R159: 15.0488 | S159: -0.04718247436 | V159: 25.9362 | W159: 0.04733061165 | Z159: 16.5293 | AA159: -0.1121871307 | AD159: 23.0679 | AE159: 0.1123385829
A160: 2007-08-17 | B160: 26.5923 | C160: 0.0345427242 | F160: 23.0694 | G160: -0.03438143553 | J160: 18.2847 | K160: 0.04067729084 | N160: 21.7055 | O160: -0.04050941786 | R160: 15.5298 | S160: 0.03196268141 | V160: 25.111 | W160: -0.03181653442 | Z160: 16.9588 | AA160: 0.02598416146 | AD160: 22.4752 | AE160: -0.02569371291
A161: 2007-08-20 | B161: 26.7918 | C161: 0.007502171681 | F161: 22.8972 | G161: -0.007464433405 | J161: 18.2184 | K161: -0.003625982379 | N161: 21.7858 | O161: 0.003699523162 | R161: 15.3629 | S161: -0.01074707981 | V161: 25.3813 | W161: 0.01076420692 | Z161: 17.219 | AA161: 0.01534306673 | AD161: 22.1292 | AE161: -0.01539474621
A162: 2007-08-21 | B162: 27.4693 | C162: 0.02528758799 | F162: 22.3219 | G162: -0.02512534284 | J162: 18.7305 | K162: 0.0281089448 | N162: 21.177 | O162: -0.02794480809 | R162: 15.1774 | S162: -0.01207454322 | V162: 25.6916 | W162: 0.01222553612 | Z162: 17.5585 | AA162: 0.01971659214 | AD162: 21.6966 | AE162: -0.01954883141
A163: 2007-08-22 | B163: 28.3363 | C163: 0.03156250796 | F163: 21.6312 | G163: -0.03094270649 | J163: 19.1157 | K163: 0.020565388 | N163: 20.7541 | O163: -0.01996977853 | R163: 15.6157 | S163: 0.02887846403 | V163: 24.964 | W163: -0.02832054057 | Z163: 18.7721 | AA163: 0.06911752143 | AD163: 20.21 | AE163: -0.06851764793
A164: 2007-08-23 | B164: 28.279 | C164: -0.002022141211 | F164: 21.6784 | G164: 0.002182033359 | J164: 19.3634 | K164: 0.0129579351 | N164: 20.4884 | O164: -0.01280228967 | R164: 15.7201 | S164: 0.006685579257 | V164: 24.8007 | W164: -0.006541419644 | Z164: 18.1953 | AA164: -0.03072645042 | AD164: 20.8342 | AE164: 0.03088570015
A165: 2007-08-24 | B165: 28.6157 | C165: 0.01190636161 | F165: 21.4238 | G165: -0.01174440918 | J165: 19.3616 | K165: -9.295888119e-05 | N165: 20.4935 | O165: 0.0002489213409 | R165: 15.881 | S165: 0.01023530385 | V165: 24.5505 | W165: -0.01008842492 | Z165: 18.7605 | AA165: 0.03106296681 | AD165: 20.1902 | AE165: -0.03091071411
A166: 2007-08-27 | B166: 28.3766 | C166: -0.008355553071 | F166: 21.6036 | G166: 0.008392535405 | J166: 19.3659 | K166: 0.0002220890835 | N166: 20.4896 | O166: -0.0001903042428 | R166: 15.7029 | S166: -0.01121465903 | V166: 24.8263 | W166: 0.01123398709 | Z166: 18.1403 | AA166: -0.03305882039 | AD166: 20.8583 | AE166: 0.03309031114
A167: 2007-08-28 | B167: 27.4302 | C167: -0.03335142336 | F167: 22.3276 | G167: 0.03351293303 | J167: 18.8567 | K167: -0.02629363985 | N167: 21.0316 | O167: 0.02645244417 | R167: 15.2645 | S167: -0.02791840998 | V167: 25.523 | W167: 0.0280629816 | Z167: 17.7256 | AA167: -0.02286070241 | AD167: 21.3384 | AE167: 0.02301721617
A168: 2007-08-29 | B168: 28.4482 | C168: 0.03711237979 | F168: 21.5179 | G168: -0.03626453358 | J168: 19.3476 | K168: 0.02603318714 | N168: 20.5011 | O168: -0.02522394872 | R168: 15.8062 | S168: 0.0354875692 | V168: 24.6368 | W168: -0.03472162363 | Z168: 18.7188 | AA168: 0.05603195378 | AD168: 20.1602 | AE168: -0.05521501143
A169: 2007-08-30 | B169: 28.238 | C169: -0.007388868188 | F169: 21.6804 | G169: 0.007551852179 | J169: 19.2015 | K169: -0.007551324195 | N169: 20.6591 | O169: 0.007706903532 | R169: 15.7122 | S169: -0.005947033443 | V169: 24.7869 | W169: 0.006092512015 | Z169: 18.4819 | AA169: -0.01265572579 | AD169: 20.4186 | AE169: 0.01281733316
A170: 2007-08-31 | B170: 29.1215 | C170: 0.0312876266 | F170: 21.0056 | G170: -0.03112488699 | J170: 19.4945 | K170: 0.01525922454 | N170: 20.3471 | O170: -0.01510230359 | R170: 16.2181 | S170: 0.0321979099 | V170: 23.9925 | W170: -0.03204918727 | Z170: 19.3713 | AA170: 0.04812275794 | AD170: 19.4392 | AE170: -0.04796607015
A171: 2007-09-04 | B171: 29.4365 | C171: 0.01081675051 | F171: 20.7778 | G171: -0.01084472712 | J171: 19.6231 | K171: 0.006596732412 | N171: 20.2123 | O171: -0.006625022731 | R171: 16.7206 | S171: 0.0309839007 | V171: 23.2481 | W171: -0.0310263624 | Z171: 20.1332 | AA171: 0.03933138199 | AD171: 18.674 | AE171: -0.03936375983
A172: 2007-09-05 | B172: 29.1412 | C172: -0.01003176329 | F172: 20.9992 | G172: 0.01065560358 | J172: 19.4321 | K172: -0.009733426421 | N172: 20.4212 | O172: 0.01033529089 | R172: 16.7408 | S172: 0.001208090619 | V172: 23.2334 | W172: -0.0006323097371 | Z172: 19.8756 | AA172: -0.01279478672 | AD172: 18.9242 | AE172: 0.01339830781
A173: 2007-09-06 | B173: 29.6467 | C173: 0.01734657461 | F173: 20.6384 | G173: -0.01718160692 | J173: 19.3218 | K173: -0.005676174989 | N173: 20.5403 | O173: 0.005832174407 | R173: 17.1153 | S173: 0.02237049603 | V173: 22.7172 | W173: -0.02221801372 | Z173: 22.5502 | AA173: 0.1345670068 | AD173: 16.3807 | AE173: -0.1344046248
A174: 2007-09-07 | B174: 28.9801 | C174: -0.02248479595 | F174: 21.1059 | G174: 0.02265194976 | J174: 19.0389 | K174: -0.01464149303 | N174: 20.8444 | O174: 0.0148050418 | R174: 16.655 | S174: -0.02689406554 | V174: 23.3317 | W174: 0.02704998855 | Z174: 22.7582 | AA174: 0.009223864977 | AD174: 16.2322 | AE174: -0.009065546649
A175: 2007-09-10 | B175: 28.9005 | C175: -0.002746712399 | F175: 21.1646 | G175: 0.002781212836 | J175: 19.0502 | K175: 0.0005935216846 | N175: 20.8326 | O175: -0.0005660992881 | R175: 16.4734 | S175: -0.01090363254 | V175: 23.5866 | W175: 0.01092505047 | Z175: 22.7961 | AA175: 0.001665333814 | AD175: 16.2058 | AE175: -0.001626396915
A176: 2007-09-11 | B176: 29.2066 | C176: 0.01059151226 | F176: 20.944 | G176: -0.01042306493 | J176: 19.0614 | K176: 0.0005879203368 | N176: 20.8242 | O176: -0.0004032141931 | R176: 16.6935 | S176: 0.01336093338 | V176: 23.275 | W176: -0.01321089093 | Z176: 23.4896 | AA176: 0.03042187041 | AD176: 15.7155 | AE176: -0.0302546002
A177: 2007-09-12 | B177: 29.4723 | C177: 0.009097258839 | F177: 20.7667 | G177: -0.008465431627 | J177: 19.0675 | K177: 0.0003200184666 | N177: 20.8302 | O177: 0.0002881263146 | R177: 17.1932 | S177: 0.02993380657 | V177: 22.592 | W177: -0.02934479055 | Z177: 23.3594 | AA177: -0.005542878551 | AD177: 15.8122 | AE177: 0.006153160892
A178: 2007-09-13 | B178: 29.8626 | C178: 0.01324294337 | F178: 20.4952 | G178: -0.01307381529 | J178: 19.0748 | K178: 0.0003828503999 | N178: 20.8256 | O178: -0.0002208332133 | R178: 17.7715 | S178: 0.03363539074 | V178: 21.8356 | W178: -0.03348087819 | Z178: 23.0809 | AA178: -0.01192239527 | AD178: 16.0033 | AE178: 0.01208560479
A179: 2007-09-14 | B179: 29.8705 | C179: 0.0002645449492 | F179: 20.4933 | G179: -9.270463328e-05 | J179: 19.109 | K179: =J179/J178-1 -> 0.001792941473 | N179: 20.7921 | O179: =N179/N178-1 -> -0.001608597111 | R179: 17.6892 | S179: -0.004631010326 | V179: 21.9401 | W179: 0.004785762699 | Z179: 22.9936 | AA179: -0.003782348175 | AD179: 16.0665 | AE179: 0.00394918548
A180: 2007-09-17 | B180: 29.6885 | C180: -0.006092967978 | F180: 20.6194 | G180: 0.006153230568 | J180: 19.162 | K180: 0.002773562196 | N180: 20.7362 | O180: -0.002688521121 | R180: 17.5595 | S180: -0.007332157475 | V180: 22.1017 | W180: 0.007365508817 | Z180: 23.0496 | AA180: 0.002435460302 | AD180: 16.0293 | AE180: -0.002315376716
A181: 2007-09-18 | B181: 30.612 | C181: 0.03110632063 | F181: 19.9817 | G181: -0.03092718508 | J181: 19.6448 | K181: 0.02519569982 | N181: 20.2171 | O181: -0.02503351627 | R181: 18.1316 | S181: 0.03258065435 | V181: 21.3851 | W181: -0.0324228453 | Z181: 24.2361 | AA181: 0.05147594752 | AD181: 15.2074 | AE181: -0.05127485293
A182: 2007-09-19 | B182: 30.2308 | C182: -0.01245263295 | F182: 20.2434 | G182: 0.01309698374 | J182: 19.7584 | K182: 0.005782700766 | N182: 20.1128 | O182: -0.005158999065 | R182: 17.1329 | S182: -0.05508063271 | V182: 22.5761 | W182: 0.0556929825 | Z182: 24.3364 | AA182: 0.004138454619 | AD182: 15.1539 | AE182: -0.00351802412
A183: 2007-09-20 | B183: 29.6829 | C183: -0.01812390013 | F183: 20.6136 | G183: 0.01828744183 | J183: 19.1974 | K183: -0.02839298729 | N183: 20.6871 | O183: 0.02855395569 | R183: 16.7307 | S183: =R183/R182-1 -> -0.0234753019 | V183: 23.1094 | W183: =V183/V182-1 -> 0.02362232627 | Z183: 25.6588 | AA183: 0.05433835736 | AD183: 14.3329 | AE183: -0.05417747247
A184: 2007-09-21 | B184: 30.2068 | C184: 0.0176498927 | F184: 20.2532 | G184: -0.01748360306 | J184: 19.3678 | K184: 0.008876201986 | N184: 20.5066 | O184: -0.008725244234 | R184: 17.1447 | S184: 0.02474492998 | V184: 22.5411 | W184: -0.02459172458 | Z184: 25.1289 | AA184: -0.02065178418 | AD184: 14.6325 | AE184: 0.02090295753
A185: 2007-09-24 | B185: 30.2218 | C185: 0.0004965769297 | F185: 20.244 | G185: -0.0004542492051 | J185: 19.3596 | K185: -0.0004233831411 | N185: 20.5159 | O185: 0.0004535125277 | R185: 17.2537 | S185: 0.006357649886 | V185: 22.3983 | W185: -0.006335094561 | Z185: 24.9473 | AA185: -0.007226738934 | AD185: 14.7382 | AE185: 0.007223645994
A186: 2007-09-25 | B186: 30.4091 | C186: 0.006197513053 | F186: 20.1218 | G186: -0.006036356451 | J186: 19.7434 | K186: 0.01982478977 | N186: 20.1123 | O186: -0.01967254666 | R186: 17.1678 | S186: -0.004978642262 | V186: 22.5131 | W186: 0.00512538898 | Z186: 24.3023 | AA186: -0.02585450129 | AD186: 15.1215 | AE186: 0.02600724648
A187: 2007-09-26 | B187: 30.6274 | C187: 0.007178772144 | F187: 19.9896 | G187: -0.006569988768 | J187: 20.072 | K187: 0.01664353657 | N187: 19.7895 | O187: -0.01604987992 | R187: 16.9641 | S187: -0.01186523608 | V187: 22.793 | W187: 0.01243276137 | Z187: 23.5873 | AA187: =Z187/Z186-1 -> -0.0294210836 | AD187: 15.5753 | AE187: 0.03001025031
A188: 2007-09-27 | B188: 31.0409 | C188: 0.01350098278 | F188: 19.723 | G188: -0.01333693521 | J188: 20.3205 | K188: 0.01238043045 | N188: 19.5476 | O188: -0.01222365396 | R188: 17.315 | S188: 0.02068485802 | V188: 22.3248 | W188: -0.02054139429 | Z188: 24.139 | AA188: =Z188/Z187-1 -> 0.02338970548 | AD188: 15.2134 | AE188: -0.0232355075
A189: 2007-09-28 | B189: 30.8608 | C189: -0.005802022493 | F189: 19.8406 | G189: 0.005962581757 | J189: 20.2571 | K189: -0.003120001968 | N189: 19.6116 | O189: 0.00327405922 | R189: 17.2459 | S189: -0.003990759457 | V189: 22.4172 | W189: 0.004138894861 | Z189: 24.5787 | AA189: =Z189/Z188-1 -> 0.01821533618 | AD189: 14.9386 | AE189: -0.01806302339
A190: 2007-10-01 | B190: 31.3714 | C190: 0.0165452613 | F190: 19.513 | G190: -0.01651159743 | J190: 20.6597 | K190: 0.01987451313 | N190: 19.2223 | O190: -0.01985049664 | R190: 17.2586 | S190: 0.0007364069141 | V190: 22.4012 | W190: -0.0007137376657 | Z190: 25.2852 | AA190: 0.02874440064 | AD190: 14.5097 | AE190: =AD190/AD189-1 -> -0.02871085644
A191: 2007-10-02 | B191: 31.0186 | C191: -0.01124591188 | F191: 19.7356 | G191: 0.01140777943 | J191: 20.5645 | K191: -0.004608004957 | N191: 19.3139 | O191: 0.004765298638 | R191: 17.1538 | S191: -0.006072334952 | V191: 22.5407 | W191: 0.006227344964 | Z191: 23.7243 | AA191: -0.06173176404 | AD191: 15.4077 | AE191: 0.06188963245
A192: 2007-10-03 | B192: 30.4846 | C192: -0.01721547717 | F192: 20.0919 | G192: 0.01805366951 | J192: 20.1995 | K192: -0.01774903353 | N192: 19.6723 | O192: 0.0185565836 | R192: 16.6915 | S192: -0.02695029673 | V192: 23.1657 | W192: 0.02772762159 | Z192: 23.2221 | AA192: -0.02116816935 | AD192: 15.7463 | AE192: 0.02197602497
A193: 2007-10-04 | B193: 31.0022 | C193: 0.01697906484 | F193: 19.7541 | G193: -0.01681274543 | J193: 20.5203 | K193: 0.01588158123 | N193: 19.363 | O193: -0.01572261505 | R193: 16.8305 | S193: 0.008327591888 | V193: 22.9762 | W193: -0.008180197447 | Z193: 24.2069 | AA193: 0.0424078787 | AD193: 15.0809 | AE193: -0.04225754622
A194: 2007-10-05 | B194: 31.4597 | C194: 0.01475701724 | F194: 19.4657 | G194: -0.01459950086 | J194: 20.6556 | K194: 0.006593470856 | N194: 19.2382 | O194: -0.006445282239 | R194: 16.8043 | S194: -0.001556697662 | V194: 23.0154 | W194: 0.001706113282 | Z194: 24.1705 | AA194: -0.00150370349 | AD194: 15.1059 | AE194: 0.001657725998
A195: 2007-10-09 | B195: 31.5561 | C195: 0.003064237739 | F195: 19.4054 | G195: -0.003097756567 | J195: 20.5735 | K195: -0.003974709038 | N195: 19.3141 | O195: 0.003945275546 | R195: 16.5578 | S195: -0.01466886452 | V195: 23.352 | W195: 0.01462499022 | Z195: 24.716 | AA195: 0.02256883391 | AD195: 14.7645 | AE195: -0.02260044089
A196: 2007-10-10 | B196: 31.4993 | C196: -0.001799968944 | F196: 19.4523 | G196: 0.002416853041 | J196: 20.4611 | K196: -0.005463338761 | N196: 19.4311 | O196: 0.006057750555 | R196: 16.6658 | S196: =R196/R195-1 -> 0.00652260566 | V196: 23.213 | W196: -0.005952380952 | Z196: 25.1623 | AA196: 0.01805712899 | AD196: 14.5067 | AE196: -0.01746080125
A197: 2007-10-11 | B197: 31.3195 | C197: -0.005708063354 | F197: 19.5665 | G197: 0.005870771066 | J197: 20.2608 | K197: -0.009789307515 | N197: 19.6243 | O197: 0.009942823618 | R197: 16.8232 | S197: =R197/R196-1 -> 0.009444491114 | V197: 22.9971 | W197: -0.009300822815 | Z197: 25.4441 | AA197: 0.01119929418 | AD197: 14.3465 | AE197: -0.01104317315
A198: 2007-10-12 | B198: 31.6741 | C198: 0.01132201983 | F198: 19.3481 | G198: -0.01116193494 | J198: 20.3954 | K198: 0.006643370449 | N198: 19.497 | O198: -0.006486855582 | R198: 16.9627 | S198: 0.008292120405 | V198: 22.8099 | W198: -0.008140156802 | Z198: 25.9697 | AA198: 0.0206570482 | AD198: 14.0523 | AE198: -0.02050674381
A199: 2007-10-15 | B199: 31.2973 | C199: -0.0118961549 | F199: 19.5789 | G199: 0.01192881988 | J199: 20.0146 | K199: -0.01867087677 | N199: 19.8616 | O199: 0.01870031287 | R199: 17.0859 | S199: 0.007262994688 | V199: 22.6447 | W199: -0.007242469279 | Z199: 26.6914 | AA199: 0.02779007844 | AD199: 13.6626 | AE199: -0.02773211503
A200: 2007-10-16 | B200: 30.959 | C200: -0.01080923914 | F200: 19.7937 | G200: =F200/F199-1 -> 0.01097099428 | J200: 19.5159 | K200: -0.02491681073 | N200: 20.3595 | O200: 0.02506847384 | R200: 17.3403 | S200: 0.01488947026 | V200: 22.3109 | W200: -0.01474075612 | Z200: 25.854 | AA200: -0.03137340117 | AD200: 14.0936 | AE200: 0.03154597222
A201: 2007-10-17 | B201: 31.2722 | C201: 0.01011660583 | F201: 19.6056 | G201: -0.009503023689 | J201: 19.6892 | K201: 0.008879938922 | N201: 20.1908 | O201: -0.008286058106 | R201: 17.9554 | S201: 0.03547228133 | V201: 21.5322 | W201: -0.03490222268 | Z201: 24.4052 | AA201: -0.05603775044 | AD201: 14.8916 | AE201: 0.05662144519
... 361 more rows
